bitfinex/quotes_ETHUSD_20220305
["timestamp","ask_amount","ask_price","bid_price","bid_amount"]
[1646482722861,0.00257951,2666.9,2666.3,0.0025801]
[1646482724062,1.19837606,2667.4,2666.8,0.88337425]
[1646482724263,0.00257956,2666.9,2666.8,0.88337425]
[1646482725014,0.00096,2667.3,2666.8,0.88337425]
[1646482725214,1.19837606,2667.4,2666.8,0.88337425]
[1646482725414,0.00258282,2667.0,2666.8,0.88337425]
[1646482725614,0.00258282,2667.0,2666.3,0.00258352]
[1646482726216,0.00096,2667.3,2666.2,0.1874]
[1646482726417,0.00125439,2666.9,2666.2,0.1874]
[1646482726617,0.00125439,2666.9,2666.5,0.98647013]
[1646482727222,0.00125439,2666.9,2666.2,0.1874]
[1646482727423,0.00096,2667.3,2666.2,0.1874]
[1646482727622,0.00125442,2666.9,2666.2,0.1874]
[1646482728657,0.00096,2667.3,2666.8,1.05948391]
[1646482728958,0.00138004,2666.9,2666.8,1.05948391]
[1646482729157,0.00036209,2666.9,2666.2,3.6874]
[1646482729357,0.00036209,2666.9,2666.3,0.377]
[1646482729562,0.00036209,2666.9,2666.4,3.877]
[1646482729759,0.0191941,2666.9,2666.4,3.877]
[1646482730159,0.0191941,2666.9,2666.5,0.86710638]
[1646482730359,0.0191941,2666.9,2666.6,3.5]
[1646482730858,0.0191941,2666.9,2666.7,0.55497496]
[1646482731058,0.0191941,2666.9,2666.8,0.55497496]
[1646482731258,0.97551402,2666.9,2666.8,0.55497496]
[1646482731659,0.97551402,2666.9,2666.3,0.55497496]
[1646482732516,0.0206555,2666.9,2666.3,0.55497496]
[1646482733513,0.0191941,2666.9,2666.5,1.00669314]
[1646482733713,0.0222111,2666.9,2666.6,0.55497496]
[1646482734115,0.0222111,2666.9,2666.5,0.00301748]
[1646482734515,0.96335527,2666.8,2666.5,0.00301748]
[1646482734718,0.98254937,2666.8,2665.9,0.25]
[1646482734914,1.11322821,2666.3,2666.0,0.55331962]
[1646482735114,1.11322821,2666.3,2665.6,3.0]
[1646482735314,1.11322821,2666.3,2665.7,0.51742976]
[1646482735761,1.13242231,2666.3,2665.7,0.51742976]
[1646482735958,0.0191941,2666.3,2665.7,4.01742976]
[1646482736158,0.0191941,2666.3,2665.9,0.00301783]
[1646482736359,0.0191941,2666.3,2665.9,0.19051783]
[1646482736559,0.0191941,2666.3,2666.0,0.51742976]
[1646482736758,0.0191941,2666.3,2665.7,2.41139323]
[1646482736958,0.0191941,2666.3,2666.2,1.1930418]
[1646482738162,0.0191941,2666.3,2665.8,0.1875]
[1646482738564,0.0191941,2666.3,2665.8,0.18895743]
[1646482738765,0.0191941,2666.3,2665.8,0.00145743]
[1646482739164,0.0191941,2666.3,2665.8,0.68864189]
[1646482739612,0.0191941,2666.3,2665.9,3.5]
[1646482740212,0.0191941,2666.3,2666.2,0.95663467]
[1646482741010,0.0191941,2666.3,2665.8,0.00291849]
[1646482741811,0.0191941,2666.3,2665.7,0.1875]
[1646482742011,0.96354295,2666.2,2665.6,3.0]
[1646482742619,0.96354295,2666.2,2665.6,3.88365226]
[1646482742819,0.98273705,2666.2,2665.6,3.88365226]
[1646482743460,0.48233705,2666.2,2665.6,3.88365226]
[1646482744062,0.0191941,2666.2,2665.6,3.88365226]
[1646482745864,0.0191941,2666.2,2665.8,0.00301518]
[1646482746263,0.0191941,2666.2,2665.6,3.83666744]
[1646482750618,0.0191941,2666.2,2665.7,0.0030153]
[1646482751463,0.0191941,2666.2,2665.6,3.83666744]
[1646482751663,0.0191941,2666.2,2665.7,0.00301532]
[1646482752668,0.0191941,2666.2,2665.6,3.83666744]
[1646482752669,1.06401311,2666.1,2665.6,2.95301518]
[1646482752869,1.08320721,2666.1,2665.6,2.95301518]
[1646482753072,1.08320721,2666.1,2665.7,0.00301532]
[1646482753269,0.0191941,2666.1,2665.7,0.00301532]
[1646482753869,0.0191941,2666.1,2665.6,2.95301518]
[1646482754069,0.0191941,2666.1,2665.7,0.0030153]
[1646482755107,0.0191941,2666.1,2665.6,2.95301518]
[1646482755307,0.0191941,2666.1,2665.7,0.75291579]
[1646482755507,4.1875,2666.4,2666.1,1.21175104]
[1646482755508,3.7062941,2666.4,2666.1,1.21175104]
[1646482755710,0.42227248,2665.9,2665.8,1.14668034]
[1646482756913,0.42227248,2665.9,2665.8,1.65987214]
[1646482762421,0.42227248,2665.9,2665.8,0.5131918]
[1646482762719,0.42227248,2665.9,2665.6,2.95301518]
[1646482762720,0.42227248,2665.9,2665.7,0.00301817]
[1646482763620,0.42227248,2665.9,2665.6,2.95301518]
[1646482763821,0.42227248,2665.9,2665.7,0.0029276]
[1646482764623,0.42227248,2665.9,2665.6,3.87171898]
[1646482765021,0.42227248,2665.9,2665.7,0.48641342]
[1646482765858,0.42227248,2665.9,2665.7,0.48348582]
[1646482766256,0.42227248,2665.9,2665.7,0.48641342]
[1646482767062,0.42227248,2665.9,2665.7,0.48348582]
[1646482767462,0.42227248,2665.9,2665.7,0.48627707]
[1646482768263,0.42227248,2665.9,2665.7,0.48348582]
[1646482768663,0.42227248,2665.9,2665.7,0.48627707]
[1646482769514,0.42227248,2665.9,2665.7,0.48348582]
[1646482769705,0.42227248,2665.9,2665.7,0.48627707]
[1646482770811,0.42227248,2665.9,2665.7,0.48348582]
[1646482771110,0.42227248,2665.9,2665.7,0.48628336]
[1646482771907,0.42227248,2665.9,2665.7,0.48348582]
[1646482772113,0.42227248,2665.9,2665.7,0.48628336]
[1646482773113,0.42227248,2665.9,2665.7,0.48348582]
[1646482773357,0.42227248,2665.9,2665.7,0.48628336]
[1646482774261,0.42227248,2665.9,2665.7,0.48348582]
[1646482774659,0.42227248,2665.9,2665.7,0.48628292]
[1646482775560,0.42227248,2665.9,2665.7,0.48348582]
[1646482775761,0.42227248,2665.9,2665.7,0.48628292]
[1646482776761,0.42227248,2665.9,2665.7,0.48348582]
[1646482777004,0.42227248,2665.9,2665.7,0.48628292]
[1646482778011,0.42227248,2665.9,2665.7,0.48348582]
[1646482778211,1.04095344,2665.8,2665.7,0.48348582]
[1646482779012,0.99095344,2665.8,2665.7,0.48348582]
[1646482782666,0.99095344,2665.8,2665.7,3.98348582]
[1646482782863,0.42227248,2665.9,2665.7,0.48348582]
[1646482783061,0.42227248,2665.9,2665.7,4.27719172]
[1646482783263,0.42227248,2665.9,2665.8,3.5]
[1646482783463,0.68964534,2666.7,2665.9,3.5]
[1646482783464,0.61454751,2666.7,2665.9,3.5]
[1646482783663,0.58354616,2666.9,2666.0,3.5]
[1646482784061,2.2197,2667.0,2666.0,3.5]
[1646482784266,0.91952712,2667.1,2666.0,3.7937059]
[1646482784526,10.36963319,2667.6,2667.2,1.06996701]
[1646482784527,1.37929068,2667.6,2667.2,1.06996701]
[1646482784716,0.007104,2668.0,2667.3,0.2937059]
[1646482784717,1.37929068,2667.9,2667.3,0.2937059]
[1646482785016,0.007104,2668.0,2667.7,0.2937059]
[1646482785214,0.007104,2668.0,2667.9,0.2937059]
[1646482785814,0.007104,2668.0,2667.9,1.1227059]
[1646482786015,0.007104,2668.0,2667.9,2.04766455]
[1646482788263,0.007104,2668.0,2667.9,5.54766455]
[1646482788866,0.007104,2668.0,2667.9,2.04766455]
[1646482789966,0.007104,2668.0,2667.9,0.7457059]
[1646482790568,0.007104,2668.0,2667.9,0.2937059]
[1646482793214,0.007104,2668.0,2667.9,3.7937059]
[1646482793614,0.007104,2668.0,2667.9,0.2937059]
[1646482794514,0.007104,2668.0,2667.9,3.7937059]
[1646482794714,0.007104,2668.0,2667.9,4.1707059]
[1646482795761,0.00026339,2668.0,2667.9,4.1707059]
[1646482795961,0.00026339,2668.0,2667.9,0.6707059]
[1646482796173,0.0171467,2668.4,2667.9,0.6707059]
[1646482796364,0.02405193,2668.5,2668.4,0.90581124]
[1646482796365,0.02355718,2668.5,2668.4,0.90581124]
[1646482796764,0.06391525,2668.5,2668.4,0.90581124]
[1646482797168,0.05801932,2668.5,2668.4,0.90581124]
[1646482797771,0.05801932,2668.5,2667.9,0.2937059]
[1646482797971,0.05801932,2668.5,2668.3,0.2937059]
[1646482798170,0.05801932,2668.5,2667.9,0.2937059]
[1646482798370,0.05801932,2668.5,2667.6,2.548]
[1646482798572,0.06106022,2668.5,2667.6,0.5437059]
[1646482799370,0.06106022,2668.5,2667.7,3.5]
[1646482799613,0.05801932,2668.5,2667.9,0.2937059]
[1646482799813,0.05801932,2668.5,2667.6,0.5437059]
[1646482800015,0.05801932,2668.5,2667.6,0.25]
[1646482800016,0.00304111,2668.2,2667.6,0.25]
[1646482800217,0.00304111,2668.2,2666.6,3.5732]
[1646482800413,0.01724911,2668.2,2666.6,3.5732]
[1646482800617,0.01724911,2668.2,2666.7,0.4811059]
[1646482800813,0.01724911,2668.2,2666.7,1.45612027]
[1646482800814,1.10343605,2667.2,2666.7,1.45612027]
[1646482801414,1.10343605,2667.2,2666.7,0.4811059]
[1646482801615,1.10343605,2667.2,2666.7,0.1874]
[1646482801815,3.5,2667.1,2666.7,0.1874]
[1646482802015,3.5,2667.1,2665.9,0.2937059]
[1646482802218,4.5,2667.1,2666.3,0.00280651]
[1646482802422,1.15444263,2666.5,2666.3,0.00280651]
[1646482802620,4.5,2667.1,2666.3,0.00280651]
[1646482802822,4.5,2667.1,2666.4,0.2937059]
[1646482802823,1.0,2667.1,2666.4,0.2937059]
[1646482803265,3.5,2667.5,2665.9,1.07734523]
[1646482803466,0.01122132,2667.3,2666.3,0.2965123]
[1646482803867,1.23029753,2667.3,2666.8,1.0797254]
[1646482804271,0.01122132,2667.3,2666.8,1.0797254]
[1646482804470,3.48480484,2667.7,2666.8,1.0797254]
[1646482804471,1.0,2667.7,2666.8,1.0797254]
[1646482804668,5.7998,2668.1,2667.0,0.2937059]
[1646482804669,5.342024,2668.1,2667.0,0.2937059]
[1646482804868,0.01122072,2667.6,2667.0,0.2937059]
[1646482805268,1.2036169,2667.6,2667.0,0.2937059]
[1646482805670,1.19239618,2667.6,2666.8,1.0797254]
[1646482805868,1.19239618,2667.6,2666.5,0.2937059]
[1646482806271,1.19239618,2667.6,2666.6,1.87611]
[1646482806472,1.19239618,2667.6,2667.0,0.2937059]
[1646482807052,1.19239618,2667.6,2667.1,0.91183271]
[1646482807248,1.20368066,2667.6,2667.1,0.91183271]
[1646482807850,0.01128448,2667.6,2667.1,0.91183271]
[1646482808050,0.028416,2668.0,2667.1,0.91183271]
[1646482808248,0.028416,2668.0,2667.2,0.2937059]
[1646482808249,0.00282114,2667.7,2667.2,0.2937059]
[1646482808550,0.00282114,2667.7,2667.1,0.91183271]
[1646482808749,0.00282114,2667.7,2666.6,3.87629]
[1646482809150,0.00282114,2667.7,2666.6,2.0]
[1646482809151,1.02837167,2667.7,2666.6,2.0]
[1646482809549,0.3001,2667.6,2666.6,2.0]
[1646482809749,0.3001,2666.8,2666.6,2.0]
[1646482812769,1.0,2667.5,2666.6,2.0]
[1646482812770,0.3001,2666.7,2666.6,2.0]
[1646482814271,0.3001,2666.7,2666.6,3.16229111]
[1646482814714,0.3001,2666.7,2666.6,3.11229111]
[1646482815314,0.3001,2666.7,2666.6,1.95]
[1646482815915,0.3001,2666.7,2666.6,0.30987777]
[1646482818771,1.30019738,2666.7,2666.6,0.30987777]
[1646482819169,2.30019738,2666.7,2666.6,0.30987777]
[1646482820173,2.75219738,2666.7,2666.6,0.30987777]
[1646482820374,1.23888,2666.5,2666.3,0.00281315]
[1646482820580,1.75219738,2666.4,2666.3,0.00281315]
[1646482821175,1.75219738,2666.4,2665.7,0.25]
[1646482821375,1.75219738,2666.4,2665.3,1.67374143]
[1646482821376,0.3001,2665.8,2665.3,1.67374143]
[1646482821577,0.3001,2665.8,2665.3,1.29904143]
[1646482822026,0.3001,2665.7,2665.3,1.29904143]
[1646482822821,0.3001,2665.7,2665.4,0.00281347]
[1646482823022,0.3001,2665.6,2665.4,0.00281347]
[1646482823222,0.3001,2665.6,2665.5,1.10617395]
[1646482825967,1.17044154,2666.2,2665.5,1.10617395]
[1646482825968,0.3001,2666.1,2665.5,1.10617395]
[1646482826971,0.3001,2666.1,2665.4,0.00282139]
[1646482827173,0.3001,2666.1,2665.3,0.2937059]
[1646482827473,0.3001,2666.1,2665.7,0.00281863]
[1646482828473,0.3001,2666.1,2664.9,0.51271091]
[1646482828776,0.3001,2666.1,2665.8,0.00281858]
[1646482829713,0.3001,2666.1,2665.2,1.22466557]
[1646482829913,0.3001,2665.6,2665.2,1.22466557]
[1646482830118,1.06668655,2665.7,2665.2,1.22466557]
[1646482830119,0.3001,2665.5,2665.2,1.22466557]
[1646482831018,0.3001,2665.5,2665.4,0.2937059]
[1646482831527,0.3001,2665.5,2665.2,1.2274846]
[1646482831720,0.3001,2665.5,2665.4,0.2937059]
[1646482832119,0.3001,2665.5,2665.2,1.22466557]
[1646482832319,0.3001,2665.5,2665.4,0.2937059]
[1646482832520,0.3001,2665.5,2665.2,2.16333557]
[1646482832820,0.3001,2665.5,2665.2,1.22466557]
[1646482833269,0.3001,2665.9,2665.2,1.22466557]
[1646482833666,0.3001,2665.9,2665.6,1.22906336]
[1646482834266,0.3001,2665.8,2665.6,1.22906336]
[1646482834866,0.3001,2665.8,2665.6,1.23210121]
[1646482835267,0.3001,2666.4,2665.6,1.23210121]
[1646482835467,0.3001,2666.1,2665.6,1.23210121]
[1646482835667,0.3001,2666.1,2665.6,1.22906336]
[1646482835867,0.3001,2666.1,2665.9,0.0030377]
[1646482836067,0.00096346,2665.8,2665.6,1.22906336]
[1646482836269,0.30106346,2665.8,2665.6,1.22906336]
[1646482836466,0.29089905,2665.8,2665.6,1.22906336]
[1646482836868,0.29089905,2665.8,2665.5,0.2937059]
[1646482837319,0.29089905,2666.1,2665.5,0.2937059]
[1646482838016,0.29089905,2666.1,2665.6,1.0212931]
[1646482839418,0.29089905,2666.1,2665.7,0.00303779]
[1646482840522,0.29089905,2666.4,2665.6,1.0212931]
[1646482840770,0.29089905,2666.2,2665.8,0.00303776]
[1646482841672,0.29089905,2666.2,2665.6,1.0212931]
[1646482841873,0.29089905,2666.2,2665.8,0.00303781]
[1646482842876,0.29089905,2666.2,2665.6,1.0212931]
[1646482843075,0.29089905,2666.2,2665.8,0.00303781]
[1646482843875,0.29089905,2666.0,2665.8,0.00303781]
[1646482844078,1.32588685,2665.9,2665.6,1.0212931]
[1646482844276,0.29089905,2665.9,2665.8,0.00293757]
[1646482844914,1.32589081,2665.9,2665.8,0.00293757]
[1646482845314,1.32589081,2665.9,2665.4,0.2937059]
[1646482845515,1.32589081,2665.9,2665.0,1.600266]
[1646482845516,0.29089905,2665.7,2665.3,1.06137456]
[1646482845717,0.29089905,2665.6,2665.3,1.06137456]
[1646482845915,0.29089905,2665.6,2665.4,0.2937059]
[1646482846320,0.29089905,2665.6,2665.3,1.06137456]
[1646482846521,0.29089905,2665.6,2665.5,0.2937059]
[1646482847723,0.29089905,2665.8,2665.5,0.2937059]
[1646482848867,0.29089905,2665.7,2665.4,3.5]
[1646482849068,0.29089905,2665.7,2665.6,0.2937059]
[1646482849268,1.24387704,2666.6,2665.6,0.2937059]
[1646482849269,0.00280908,2666.6,2665.7,4.877]
[1646482849468,0.00280908,2666.6,2666.0,0.2937059]
[1646482849868,0.00280908,2666.6,2665.7,8.377]
[1646482850068,2.14195968,2666.7,2666.2,0.2937059]
[1646482850271,1.03131444,2666.6,2666.2,0.2937059]
[1646482851473,1.03131444,2666.5,2666.2,0.2937059]
[1646482851673,0.00281879,2666.6,2666.4,0.2937059]
[1646482852323,1.15325702,2666.8,2666.4,0.2937059]
[1646482852518,1.03242801,2666.7,2666.4,0.2937059]
[1646482852719,1.03242801,2666.7,2666.1,0.96858844]
[1646482852720,0.0028188,2666.6,2666.1,0.96858844]
[1646482853420,0.0028188,2666.6,2666.0,0.2937059]
[1646482853620,1.0,2666.4,2665.7,0.2937059]
[1646482853822,1.03242801,2666.3,2665.7,0.2937059]
[1646482854021,1.03242801,2666.3,2665.8,0.00281964]
[1646482854620,1.03242801,2666.3,2665.8,1.13351703]
[1646482854823,1.03242801,2666.3,2665.8,1.13069739]
[1646482855022,1.03242801,2666.3,2665.8,1.13359733]
[1646482855622,1.7151392,2666.3,2665.8,0.00289994]
[1646482856062,0.00102158,2665.7,2665.6,0.2937059]
[1646482856462,0.00102158,2665.7,2665.6,0.78389885]
[1646482856662,0.00102158,2665.7,2665.6,0.2937059]
[1646482857265,0.00102158,2665.7,2665.6,1.26347806]
[1646482857665,0.00102158,2665.7,2665.6,1.75364719]
[1646482858566,0.98344959,2665.7,2665.6,1.75364719]
[1646482858766,3.7336045,2666.4,2665.6,1.75364719]
[1646482858967,0.68271119,2666.2,2665.6,1.26347806]
[1646482859820,0.68271119,2666.2,2665.7,0.29652169]
[1646482860025,0.91309514,2666.5,2665.7,0.29652169]
[1646482860026,0.68271119,2666.3,2665.8,0.2937059]
[1646482860219,0.68271119,2666.3,2666.2,0.2937059]
[1646482860621,0.68271119,2666.4,2666.2,0.2937059]
[1646482860821,1.47853239,2666.6,2666.2,0.2937059]
[1646482860822,0.68271119,2666.3,2666.2,0.2937059]
[1646482861220,0.9546569,2666.5,2666.2,0.2937059]
[1646482861221,0.68271119,2666.4,2666.2,0.2937059]
[1646482861420,0.68271119,2666.3,2665.7,0.00281598]
[1646482861822,1.86775223,2666.5,2666.2,0.2937059]
[1646482862022,0.91028022,2666.4,2665.5,3.5]
[1646482862224,0.69047034,2666.1,2665.4,4.127]
[1646482862424,0.69047034,2666.2,2665.7,0.00281973]
[1646482862634,0.69047034,2666.2,2666.0,1.21090368]
[1646482863267,0.69047034,2666.2,2666.1,0.2937059]
[1646482863667,2.86775603,2666.5,2666.1,3.7937059]
[1646482863668,0.69047034,2666.4,2666.1,3.7937059]
[1646482863868,0.69047034,2666.4,2666.3,0.2937059]
[1646482864069,0.00281891,2666.5,2666.3,0.2937059]
[1646482864471,0.69247034,2666.6,2666.3,0.2937059]
[1646482864672,0.00281904,2666.5,2666.3,0.2937059]
[1646482865377,0.69047034,2666.4,2666.3,0.2937059]
[1646482865573,0.91228022,2666.6,2666.3,0.2937059]
[1646482865775,0.91028022,2666.5,2666.4,0.2937059]
[1646482866074,0.91028022,2666.5,2665.4,2.5202]
[1646482866075,3.50281848,2666.5,2665.7,0.00281939]
[1646482866276,0.69071527,2665.8,2665.7,0.00281939]
[1646482866477,1.64250257,2665.8,2665.7,0.00281939]
[1646482867037,0.69071527,2665.8,2665.6,0.00281909]
[1646482867432,0.69071527,2665.7,2665.6,0.00281909]
[1646482868035,0.69071527,2665.7,2665.4,0.2937059]
[1646482868234,0.69071527,2665.7,2665.5,0.00281914]
[1646482868432,0.69071527,2665.8,2665.6,0.2937059]
[1646482868631,0.69071527,2665.8,2665.5,0.00281914]
[1646482868832,0.69071527,2665.8,2665.7,0.2937059]
[1646482869531,2.38143053,2666.3,2665.7,0.2937059]
[1646482869532,0.69071527,2666.0,2665.7,0.2937059]
[1646482869931,0.69071527,2666.0,2665.9,0.2937059]
[1646482870865,0.69071527,2666.0,2665.7,0.00281919]
[1646482871665,0.69071527,2666.0,2665.4,1.23126397]
[1646482871865,0.69071527,2665.9,2665.7,0.00281913]
[1646482872069,0.69071527,2666.0,2665.7,0.00281913]
[1646482872268,0.69071527,2666.0,2665.8,0.2937059]
[1646482873272,3.10674485,2666.3,2665.8,0.2937059]
[1646482873273,0.69071527,2666.1,2665.8,0.2937059]
[1646482874072,0.69071527,2666.1,2665.4,0.93755807]
[1646482874073,0.99847888,2665.9,2665.4,0.93755807]
[1646482874272,0.99847888,2665.9,2665.7,0.00281918]
[1646482874526,0.69071527,2666.0,2665.7,0.00281918]
[1646482875318,0.69071527,2666.0,2665.6,0.2937059]
[1646482875517,0.69071527,2666.0,2665.7,0.00281913]
[1646482876119,0.69071527,2666.0,2665.4,0.93755807]
[1646482876318,0.69071527,2666.0,2665.6,0.29271593]
[1646482877324,0.69071527,2666.0,2665.8,0.29271593]
[1646482877525,1.7856202,2666.0,2665.8,0.29271593]
[1646482877923,0.69071527,2666.0,2665.8,0.29271593]
[1646482879170,1.03611332,2665.9,2665.8,0.29271593]
[1646482879372,0.69071527,2665.9,2665.8,0.29271593]
[1646482879872,0.69071527,2666.0,2665.8,0.29271593]
[1646482880673,1.72682859,2665.9,2665.8,0.29271593]
[1646482881876,1.03611332,2665.9,2665.6,0.00157219]
[1646482882119,0.6902186,2665.8,2665.6,0.00157219]
[1646482882321,0.6902186,2665.8,2665.4,0.49233451]
[1646482882518,1.03611332,2665.9,2665.4,0.49233451]
[1646482882519,0.6902186,2665.7,2665.4,0.49233451]
[1646482882721,0.6902186,2665.7,2665.6,0.00157219]
[1646482882921,1.03611332,2665.7,2665.6,0.00157219]
[1646482883122,1.95706701,2665.9,2665.6,0.00157219]
[1646482883322,1.95706701,2665.8,2665.6,0.00157219]
[1646482883521,1.03611332,2665.7,2665.6,0.00157219]
[1646482883721,1.0,2665.6,2665.3,0.29271593]
[1646482883925,2.71745584,2665.5,2665.3,0.29271593]
[1646482884122,1.03611332,2665.4,2665.3,0.29271593]
[1646482885324,1.03611332,2665.5,2665.3,0.29271593]
[1646482885523,1.03611332,2665.5,2665.3,0.25771593]
[1646482886370,1.03611332,2665.5,2665.4,0.49275205]
[1646482887170,0.69026146,2665.9,2665.4,0.49275205]
[1646482887370,0.69026146,2665.9,2665.6,0.88894069]
[1646482888372,0.69026146,2665.9,2665.8,0.25771593]
[1646482888771,0.69026146,2665.9,2665.6,0.88894069]
[1646482888772,0.69026146,2665.9,2665.6,1.14665662]
[1646482888974,0.69026146,2665.9,2665.8,0.25771593]
[1646482889522,0.69026146,2665.9,2665.6,0.00294327]
[1646482889717,0.69026146,2665.9,2665.6,0.25771593]
[1646482890118,1.72637478,2665.8,2665.6,0.26065925]
[1646482890318,1.03611332,2665.7,2665.6,0.26065925]
[1646482890717,0.69026146,2665.8,2665.6,0.26065925]
[1646482890916,0.69026146,2665.8,2665.6,0.25771593]
[1646482891118,1.03611332,2665.7,2665.6,0.25771593]
[1646482891721,0.69026146,2665.9,2665.6,0.25771593]
[1646482891920,0.69026146,2665.8,2665.6,0.25771593]
[1646482893127,2.72637478,2665.7,2665.0,1.600266]
[1646482893364,2.72637478,2665.7,2665.1,0.49288957]
[1646482893368,1.72637478,2665.6,2665.1,0.49288957]
[1646482894367,1.72637478,2665.6,2665.5,0.25771593]
[1646482895166,1.72637478,2665.6,2665.5,0.06949473]
[1646482895767,1.03611332,2665.6,2665.5,0.06949473]
[1646482895968,1.03611332,2665.6,2665.4,0.00304087]
[1646482896170,0.02125787,2665.2,2665.1,0.94397673]
[1646482896368,0.02125787,2665.2,2665.1,1.438052]
[1646482896568,1.05737119,2665.2,2665.1,1.438052]
[1646482897226,1.05737119,2665.2,2665.1,1.2498308]
[1646482897427,1.05737119,2665.2,2665.1,4.7498308]
[1646482898029,0.02125787,2665.2,2665.1,4.7498308]
[1646482898328,0.02125787,2665.2,2665.1,1.2498308]
[1646482898731,0.02125787,2665.2,2665.1,4.7498308]
[1646482899132,0.02125787,2665.2,2665.1,4.5616096]
[1646482899931,0.02125787,2665.2,2665.1,4.9386096]
[1646482902771,0.02125787,2665.2,2665.1,5.1261096]
[1646482904073,0.02125787,2665.2,2665.1,1.6261096]
[1646482904272,0.02125787,2665.2,2665.1,4.9386096]
[1646482905917,0.00293721,2666.2,2665.3,0.377]
[1646482906117,0.00293721,2666.2,2665.5,0.377]
[1646482906317,0.00293721,2666.2,2665.7,0.377]
[1646482906318,1.03588566,2666.2,2665.7,0.377]
[1646482906518,1.03294845,2666.1,2665.8,3.99407527]
[1646482906717,0.69226146,2666.6,2666.3,0.73626774]
[1646482906718,0.002,2666.6,2666.3,0.73626774]
[1646482906917,0.01174919,2666.4,2666.3,0.54836152]
[1646482907820,1.03210643,2666.4,2666.3,0.54836152]
[1646482908264,1.7253054,2666.5,2666.3,0.54836152]
[1646482908469,0.00293751,2666.5,2666.4,3.44405172]
[1646482908669,1.0350176,2666.5,2666.3,0.54836152]
[1646482909067,1.03208009,2666.5,2665.9,3.5]
[1646482909267,1.03208009,2666.4,2666.0,0.49370631]
[1646482909470,1.03208009,2666.3,2666.1,0.49370631]
[1646482909667,0.69507216,2666.6,2665.6,4.5165]
[1646482909668,1.03208009,2666.2,2665.6,3.877]
[1646482909869,1.03208009,2666.1,2665.7,0.49358388]
[1646482910067,0.69507216,2666.6,2665.8,1.22647654]
[1646482910068,1.03208009,2666.0,2665.8,1.22647654]
[1646482910268,0.92646377,2666.3,2665.9,0.49358388]
[1646482910471,0.002,2666.6,2665.9,3.99358388]
[1646482910472,1.03460334,2666.2,2665.9,3.99358388]
[1646482910671,1.0317925,2666.1,2666.0,0.49358388]
[1646482910868,0.00281084,2666.2,2666.0,0.49358388]
[1646482911371,1.0317925,2666.3,2666.0,0.49358388]
[1646482911570,1.03460337,2666.2,2666.1,0.49358388]
[1646482911769,0.00281087,2666.2,2665.9,0.49358388]
[1646482912623,1.0317925,2666.4,2665.4,2.3938]
[1646482912624,1.72205396,2666.4,2665.4,2.3938]
[1646482912822,1.72205396,2666.4,2665.2,0.25]
[1646482912823,0.69174078,2666.2,2665.5,0.49380488]
[1646482913023,0.69174078,2666.2,2665.6,0.49380488]
[1646482913224,0.69174078,2666.2,2665.2,0.25]
[1646482913423,0.69174078,2666.2,2665.0,9.713166]
[1646482913424,1.19863507,2665.7,2665.3,0.49377756]
[1646482913624,1.0317925,2665.6,2665.4,0.49377756]
[1646482913824,1.0317925,2665.6,2665.0,1.600266]
[1646482914024,1.0317925,2665.6,2665.1,0.4939436]
[1646482914623,1.0317925,2665.6,2665.2,1.10396504]
[1646482914824,1.0317925,2665.5,2665.3,0.4939436]
[1646482915027,1.0317925,2665.4,2665.3,0.4939436]
[1646482915424,0.69026146,2666.1,2665.3,0.4939436]
[1646482915870,0.9233647,2665.8,2665.3,0.4939436]
[1646482916072,1.03174599,2665.7,2665.3,0.4939436]
[1646482916469,1.03174599,2665.7,2665.3,0.49698752]
[1646482917073,1.03174599,2665.7,2665.4,0.4939436]
[1646482917274,1.03174599,2665.7,2665.5,0.4939436]
[1646482917474,1.03174599,2665.7,2665.0,1.600266]
[1646482917676,1.03174599,2665.7,2665.3,0.00304381]
[1646482918175,1.03174599,2665.7,2665.3,0.92004292]
[1646482918376,1.03174599,2665.7,2665.4,0.49364028]
[1646482918576,1.03174599,2665.7,2665.5,0.49364028]
[1646482918780,1.03174599,2665.7,2665.3,0.00304381]
[1646482919825,0.69330426,2666.2,2665.2,0.49364851]
[1646482919826,1.03174599,2665.6,2665.2,0.49364851]
[1646482920028,0.69330426,2666.2,2665.6,0.67281606]
[1646482920229,1.03177157,2666.1,2665.6,0.67281606]
[1646482920426,1.03177157,2666.0,2665.7,0.49346029]
[1646482920627,1.03177157,2665.9,2665.7,1.41601623]
[1646482920827,1.03177157,2665.8,2665.7,0.92255594]
[1646482921127,1.03177157,2665.8,2665.7,1.41594028]
[1646482921331,1.03177157,2666.1,2665.7,1.41594028]
[1646482921532,1.03177157,2666.0,2665.8,0.4933449]
[1646482921729,1.03177157,2665.9,2665.8,0.4933449]
[1646482922132,1.03177157,2666.1,2665.8,0.4933449]
[1646482922533,1.03177157,2666.0,2665.8,0.4933449]
[1646482922735,1.03177157,2665.9,2665.8,0.4933449]
[1646482922936,1.03177157,2665.9,2665.8,3.9933449]
[1646482923777,0.0029403,2666.2,2665.8,3.9933449]
[1646482923977,1.03471187,2666.2,2665.9,0.4933449]
[1646482924178,1.03471187,2666.2,2665.7,4.42255594]
[1646482924378,1.03471187,2666.2,2665.8,0.4931623]
[1646482924578,1.03177157,2666.2,2665.8,0.4931623]
[1646482924882,1.03458514,2666.2,2665.8,0.4931623]
[1646482925879,1.03177157,2666.2,2665.8,0.4931623]
[1646482926081,1.03458517,2666.2,2665.8,0.4931623]
[1646482927034,1.03177157,2666.2,2665.6,0.67281606]
[1646482927226,1.03458517,2666.2,2665.7,0.4931414]
[1646482927830,1.03458517,2666.2,2665.7,3.9931414]
[1646482928029,1.03458517,2666.2,2665.9,1.07559618]
[1646482928227,0.002,2666.6,2666.0,3.9931414]
[1646482928428,0.00282212,2666.2,2666.1,0.4931414]
[1646482929431,1.03103421,2666.4,2666.1,0.4931414]
[1646482929632,1.03385631,2666.3,2666.1,0.4931414]
[1646482929829,1.03103421,2666.2,2666.1,0.4931414]
[1646482930029,0.0028221,2666.3,2666.1,0.4931414]
[1646482930773,0.00282208,2666.3,2666.1,0.4931414]
[1646482930974,0.00282208,2666.3,2665.9,1.07559618]
[1646482931175,0.00282208,2666.3,2666.0,0.49274302]
[1646482931773,1.03103421,2666.4,2666.0,3.99274302]
[1646482931975,1.03103421,2666.4,2666.1,0.49274302]
[1646482932178,1.03385574,2666.3,2665.9,1.07559618]
[1646482932378,0.00282153,2666.3,2666.0,3.99270677]
[1646482932579,0.00282153,2666.3,2666.1,0.49270677]
[1646482932778,1.03385574,2666.3,2666.1,0.49270677]
[1646482933080,0.002,2666.6,2666.1,0.49270677]
[1646482933281,0.0028215,2666.3,2666.1,0.49270677]
[1646482934278,1.03082954,2666.5,2666.1,0.49270677]
[1646482934537,0.002,2666.6,2666.4,1.0246369]
[1646482935126,1.03255217,2666.6,2666.5,3.5]
[1646482935329,0.00043375,2666.6,2666.5,3.99226739]
[1646482935728,0.00325513,2666.6,2666.5,3.99226739]
[1646482935926,0.00325513,2666.6,2666.5,0.49226739]